Cogmind - Beta 17 @@@ ROGUE MODE // 2026.07.03 @ 14:24:57 Player: foolish jester Result: Destroyed by G-47 Trooper with Particle Gun Performance ------------- Evolutions (0) 0 Regions Visited (2) 400 Robots Destroyed (14) 70 Value Destroyed (285) 285 Prototype IDs (3) 60 Alien Tech Used (0) 0 Bonus (5000) 5000 TOTAL SCORE: 5815 Bonus ------- Prayed to X0-1V1 5000 Cogmind --------- Core Integrity 0/250 Matter 300/300 Energy 122/125 System Corruption 0% Temperature Warm (145) Movement Rolling (100) Location -10/Mines Parts ------- > --- POWER (1) -------- Light Ion Engine > --- PROPULSION (2) --- Light Treads Compact Wheel > --- UTILITY (2) ------ Small Storage Unit X0-1V1's Piety Tracker > --- WEAPON (2) ------- Beam Rifle > --- INVENTORY (8) ---- Light Ion Engine Light Treads Wheel Heat Sink Seismic Detector Beam Rifle Beam Rifle Grenade Launcher Peak State ------------ > --- POWER ------------ Light Ion Engine > --- PROPULSION ------- Light Treads Compact Wheel > --- UTILITY ---------- Small Storage Unit X0-1V1's Piety Tracker > --- WEAPON ----------- Beam Rifle Beam Rifle > --- INVENTORY -------- Light Ion Engine Light Treads Wheel Heat Sink Seismic Detector Beam Rifle Beam Rifle Grenade Launcher [Rating: 22] Favorites ----------- Power Ion Engine Engine Ion Engine Propulsion Light Treads Treads Light Treads Wheel Compact Wheel Utility Small Storage Unit Device Heat Sink Storage Small Storage Unit Weapon Beam Rifle Energy Gun Beam Rifle Build | -11 -10 -10 ------- Run | Yrd Mat Min Slots Evolved . | . . . Power . | . . . Propulsion . | . . . Utility . | . . . Weapon . | . . . Parts Attached 12 | 6 6 . Power 2 | 1 1 . Engine 2 | 1 1 . Core . | . . . Reactor . | . . . Propulsion 2 | 2 . . Treads 1 | 1 . . Leg . | . . . Wheel 1 | 1 . . Hover . | . . . Flight . | . . . Utility 4 | 1 3 . Device 3 | . 3 . Storage 1 | 1 . . Processor . | . . . Hackware . | . . . Protection . | . . . Artifact . | . . . Weapon 4 | 2 2 . Energy Gun 4 | 2 2 . Energy Cannon . | . . . Ballistic Gun . | . . . Ballistic Cannon . | . . . Launcher . | . . . Special Weapon . | . . . Impact Weapon . | . . . Slashing Weapon . | . . . Piercing Weapon . | . . . Special Melee Weapon . | . . . Unidentified Prototypes 1 | . 1 . Parts Lost 2 | . 1 1 Power 1 | . 1 . Propulsion . | . . . Utility . | . . . Weapon 1 | . . 1 Highest Loss Streak 1 | . 1 1 To Critical Strikes . | . . . Average Backups 7 | 4 7 8 Power . | . . 1 Propulsion 2 | 2 2 2 Utility . | . 1 2 Weapon 2 | . 2 3 Tool/Special . | . . . Unused Backups 9 | . 3 6 Power 1 | . . 1 Propulsion 4 | . 2 2 Utility . | . . . Weapon 4 | . 1 3 Tool/Special . | . . . Average Slot Usage (%) 99 | . 99 100 Engine 13 | . 13 14 Treads 14 | . 14 14 Wheel 14 | . 14 14 Device 13 | . 13 14 Storage 14 | . 14 14 Energy Gun 28 | . 28 28 Peak Build Rating 22 | 6 22 22 Average Rating 10 | 4 11 20 On Entrance 9 | . 6 22 Avg Prop Armor Cover (%) 11 | 14 10 . Naked Turns . | . . . Heaviest Build 17 | 13 17 . Greatest Support 20 | 20 20 . Greatest Overweight (x) 1 | . 1 . Average Overweight (x) . | . . . Largest Inventory Capacity 8 | 8 8 8 Average Capacity 7 | 7 8 8 Most Carried 8 | 7 8 8 Average Carried 7 | 4 7 8 Final Capacity 8 | 8 8 8 Final Carried 8 | 7 8 8 Class Distribution -------------------- 100% | Mutant Dominant Class ---------------- Mutant | -10/Materials Mutant | -10/Mines Resources | -11 -10 -10 ----------- Run | Yrd Mat Min Matter Collected 320 | 260 60 . Remotely . | . . . Salvage Created 387 | 30 357 . Parts 24 | 3 21 . Haulers Intercepted . | . . . Recyclers Shooed . | . . . Parts Field Recycled . | . . . Retrieved Matter . | . . . Parts Self-Destructed . | . . . Prevented . | . . . Parts Restored . | . . . Kills | -11 -10 -10 ------- Run | Yrd Mat Min Combat Hostiles Destroyed 10 | . 10 . Guns 10 | . 10 . Classes Destroyed 5 | 1 4 . Tunneler 1 | 1 . . Operator 1 | . 1 . Watcher 2 | . 2 . Swarmer 5 | . 5 . Grunt 5 | . 5 . Best Kill Streak 5 | 1 5 . Combat Bots Only 5 | . 5 . Max Kills in Single Turn 1 | 1 1 . Gunslinging . | . . . Exploded . | . . . Melee . | . . . Uniques/NPCs Destroyed . | . . . Combat | -11 -10 -10 -------- Run | Yrd Mat Min Hostile Shots Fired 60 | . 52 8 Missed 12 | . 11 1 Hits 48 | . 41 7 Projectile 48 | . 41 7 AOE 1 | . 1 . Critical Strikes 1 | . 1 . Damage Taken 646 | . 545 101 Core 254 | . 222 32 Absorbed by Shields . | . . . Core Remaining (%) 100 | 100 . . Volleys Fired 49 | 4 41 4 Largest 2 | 2 2 2 Hottest 112 | 90 112 112 Shots Fired 95 | 8 82 5 Gun 95 | 8 82 5 Cannon . | . . . Launcher . | . . . Special . | . . . Kinetic . | . . . Thermal 95 | 8 82 5 Explosive . | . . . Electromagnetic . | . . . Robot Hit Streak 10 | 3 10 8 Robot Miss Streak 4 | 1 4 . Penetration Max . | . . . Secondary Targets . | . . . Shots Hit Robots 55 | 5 46 4 Core Hits 21 | 1 19 1 Critical Kills . | . . . Critical Parts Destroyed . | . . . Critical Strikes 7 | . 6 1 Burn 7 | . 6 1 Melee Attacks . | . . . Impact . | . . . Slashing . | . . . Piercing . | . . . Sneak Attacks . | . . . Combat Hostiles . | . . . Follow-up Attacks . | . . . Damage Inflicted 789 | 58 674 57 Guns 789 | 58 674 57 Cannons . | . . . Explosions . | . . . Melee . | . . . Ramming . | . . . Kinetic . | . . . Thermal 789 | 58 674 57 Explosive . | . . . Electromagnetic . | . . . Impact . | . . . Slashing . | . . . Piercing . | . . . Highest Corruption . | . . . Average Corruption . | . . . Corruption Purged . | . . . Corruption Blocked . | . . . Overload Shots . | . . . Overflow Damage . | . . . Projectiles . | . . . Explosions . | . . . Melee . | . . . Knockbacks . | . . . Impact . | . . . Kinetic . | . . . Secondary . | . . . Self-Inflicted Damage . | . . . Shots . | . . . Rammed . | . . . Targets Rammed . | . . . Kicked . | . . . Crushed . | . . . Highest Temperature 329 | 60 329 136 Average Temperature 81 | 33 85 87 Received Heat Transfer 231 | . 177 54 Effects 3 | . 3 . Interference 3 | . 3 . Siege Activations . | . . . Martial Activations . | . . . Shielding Activations . | . . . Robots Disrupted . | . . . Combat Hostiles . | . . . Robots Corrupted . | . . . Combat Hostiles . | . . . Parts Fried . | . . . Impact Corruptions . | . . . Robots Melted . | . . . Combat Hostiles . | . . . Parts Melted 9 | . 9 . Heat Transferred 2517 | 149 2146 222 Parts Sabotaged . | . . . Parts Stolen . | . . . Parts Stripped . | . . . Power Chain Reactions . | . . . Alert | -11 -10 -10 ------- Run | Yrd Mat Min Maximum Alert Level . | . . . Low Security (%) 100 | 100 100 100 Level 1 . | . . . Level 2 . | . . . Level 3 . | . . . Level 4 . | . . . Level 5 . | . . . High Security . | . . . Max Security . | . . . Peak Influence 131 | 5 131 3 Initial 3 | . . 3 Average 31 | . 33 . Influence Increases 370 | 5 365 . Destroy 0b10 Robot/C 200 | . 200 . Destroy 0b10 Robot/NC 20 | 5 15 . Destroy Leader 54 | . 54 . Successful Hack 17 | . 17 . Disable Machine 15 | . 15 . Destroy Structure 4 | . 4 . Partial Spotted 15 | . 15 . Lose Combat Pursuer 45 | . 45 . Influence Decreases 370 | 5 356 9 Entered New Map 6 | . . 6 Time Decay 329 | 5 324 . Lost Part 13 | . 10 3 Purge Threat 22 | . 22 . Squads Dispatched 4 | . 4 . Investigation 2 | . 2 . Extermination . | . . . Reinforcement 2 | . 2 . Assault . | . . . Garrison . | . . . Intercept . | . . . Searches Triggered . | . . . Construction Impeded . | . . . Haulers Reinforced . | . . . Active Scanning Responses . | . . . Cargo Convoy Interrupts . | . . . Stealth | -11 -10 -10 --------- Run | Yrd Mat Min Distress Signals 2 | . 2 . Communications Jammed . | . . . Distress Signals . | . . . Times Spotted 24 | . 22 2 Peak Tracking Total 4 | . 4 2 Tactical Retreats 1 | . 1 . Traps | -11 -10 -10 ------- Run | Yrd Mat Min Traps Triggered 1 | . 1 . Indirectly . | . . . Trap Hack Attempts . | . . . Triggered . | . . . Disarmed 6 | . 6 . Reprogrammed . | . . . Reused . | . . . Traps Extracted . | . . . Installed . | . . . Triggered . | . . . Machines | -11 -10 -10 ---------- Run | Yrd Mat Min Machines Disabled 1 | . 1 . Max in Single Turn 1 | . 1 . Machines Repaired . | . . . Machines Dismantled . | . . . Machines Sabotaged . | . . . Overloaded Fab Kills . | . . . Hacking | -11 -10 -10 --------- Run | Yrd Mat Min Machines Accessed 7 | . 7 . Terminals 6 | . 6 . Fabricators . | . . . Repair Stations 1 | . 1 . Recycling Units . | . . . Scanalyzers . | . . . Garrison Access . | . . . Total Hacks 17 | . 17 . Successful 8 | . 8 . Failed 9 | . 9 . Catastrophic 2 | . 2 . Database Lockouts . | . . . Manual 11 | . 11 . Terminals 16 | . 16 . Fabricators . | . . . Repair Stations 1 | . 1 . Recycling Units . | . . . Scanalyzers . | . . . Garrison Access . | . . . Terminal Hacks 5 | . 5 . Robot Analysis 1 | . 1 . Prototype ID Bank 1 | . 1 . Unreport Threat 1 | . 1 . Disarm Traps 1 | . 1 . Zone Layout 1 | . 1 . Fabricator Hacks . | . . . Repair Station Hacks . | . . . Recycling Unit Hacks . | . . . Scanalyzer . | . . . Garrison Access Hacks . | . . . Unauthorized Hacks 3 | . 3 . Terminals 3 | . 3 . Botnet 2 | . 2 . Operators 1 | . 1 . Fabricators . | . . . Repair Stations . | . . . Recycling Units . | . . . Scanalyzers . | . . . Garrison Access . | . . . Data Cores Recovered . | . . . Used . | . . . Hacking Detections 6 | . 6 . Full Trace Events 2 | . 2 . Feedback Events . | . . . Feedback Blocked . | . . . Robot Schematics Acquired . | . . . Robots Built . | . . . Authchips . | . . . Time . | . . . Total Robot Build Rating . | . . . Part Schematics Acquired . | . . . Parts Built . | . . . Authchips . | . . . Time . | . . . Total Part Build Rating . | . . . Part Studies Acquired . | . . . Parts Repaired . | . . . Time . | . . . Parts Recycled . | . . . Recycled Matter . | . . . Retrieved Matter . | . . . Retrieved Components . | . . . Parts Scanalyzed . | . . . Part Schematics Acquired . | . . . Parts Damaged . | . . . Bothacking | -11 -10 -10 ------------ Run | Yrd Mat Min Used RIF Installer . | . . . Robots Hacked . | . . . Non-combat . | . . . Combat . | . . . Robot Hacks Applied . | . . . Relay Couplers Released . | . . . Fabnet Peak Effective % . | . . . Robots Rewired . | . . . Allies Hacked . | . . . Hacks Repelled . | . . . Allies | -11 -10 -10 -------- Run | Yrd Mat Min Total Allies . | . . . Largest Group . | . . . Highest-Rated Group . | . . . Highest-Rated Ally . | . . . Total Orders . | . . . Ally Attacks . | . . . Total Damage . | . . . Kills . | . . . Allies Corrupted . | . . . Allies Melted . | . . . X0-1V1 Amusement Gains 17 | . 17 . Intel | -11 -10 -10 ------- Run | Yrd Mat Min Active Infowar (turns) 99 | . 99 . Seismic 99 | . 99 . Robot Analysis Total 1 | . 1 . Derelict Logs Recovered . | . . . Drone Launches . | . . . Drone Recoveries . | . . . Exploration | -11 -10 -10 ------------- Run | Yrd Mat Min Turns Passed 1627 | 130 1489 8 Spaces Moved 686 | 90 596 . Core 9 | 9 . . Treads 196 | 11 185 . Legs . | . . . Wheels 481 | 70 411 . Hover . | . . . Flight . | . . . Fastest Speed 50 | 50 100 . Average Speed 123 | 102 127 . Slowest Speed 160 | 160 160 . Overloaded Moves . | . . . Propulsion Burnouts . | . . . Robots Hopped . | . . . Potential Cave-ins . | . . . Cave-ins Triggered . | . . . Exploration Rate (%) 30 | 5 80 6 Regions Visited 2 Branch Regions 1 Pre-discovered Areas . | . . . Known Exits Taken . | . . . Unknown Exits Taken 2 | 1 1 . Scrap Searched . | . . . Spaces Dug . | . . . Terrain Destroyed . | . . . Melee . | . . . Projectile . | . . . AOE . | . . . Terrain Rammed . | . . . Walls Destroyed . | . . . Machines Disabled . | . . . Actions | -11 -10 -10 --------- Run | Yrd Mat Min Total 1371 | 119 1248 4 Wait 600 | 7 593 . Move 684 | 89 595 . Hop . | . . . Pick Up 21 | 13 8 . Fast Attach . | . . . Attach 8 | 6 2 . Detach . | . . . Swap 4 | . 4 . Drop 5 | . 5 . Fire 49 | 4 41 4 Melee . | . . . Ram . | . . . Kick . | . . . Crush . | . . . Escape Stasis . | . . . Rewire . | . . . Trap . | . . . Miscellaneous . | . . . Route ------- -11/Scrapyard -10/Materials (discovered 4 exits: [*Mat x3] / [*Min]) -10/Mines History --------- Turn | Location | Event 38 | -11/Scrapyard | Discovered new exit (range 16) 131 | -11/Scrapyard | Entered Materials 249 | -10/Materials | Discovered new exit (range 13) 318 | -10/Materials | Build established: Mutant 833 | -10/Materials | Discovered new exit (range 14) 896 | -10/Materials | Core integrity fell below 50% 1022 | -10/Materials | Core integrity fell below 20% 1441 | -10/Materials | Prayed at D.C.S.S. Altar Unit 1514 | -10/Materials | Discovered new exit (range 10) 1614 | -10/Materials | Discovered new exit (range 7) 1620 | -10/Materials | Entered Mines 1628 | -10/Mines | Destroyed by G-47 Trooper with Particle Gun Last Messages --------------- 01446_ Identified X0-1V1's Piety Tracker. 01452_ U-05 Engineer builds a Door. 01511_ Material Processor disabled. 01514_ EXIT=FOUND 01530_ W-16 Scout suffers critical hit (Burn). 01530_ Visual Processing Unit melted. 01530_ W-16 Scout destroyed. 01536_ Acquired 10 matter. 01570_ K-01 Serf cleans the Purification Channel. 01614_ EXIT=FOUND LOCATION=UNKNOWN GOAL=ESCAPE 01621_ Beam Rifle destroyed. 01625_ G-34 Mercenary suffers critical hit (Burn). 01626_ G-34 Mercenary heat spikes uncontrollably. 01626_ G-34 Mercenary overheating. 01628_ G-34 Mercenary heat damages Aluminum Leg. 01628_ G-34 Mercenary overheating. 01628_ X0-1V1 howls with laughter! [Achievement: Back For More] Map ----- +----------------------------------------------------+ | ?????????????????????????????????????????????????? | | ?????????????????????????????????????????????????? | | ?????????????????????????????????????????????????? | | ?????????????????????????????????????????????????? | | ?????????????????????????????????????????????????? | | ?????????????????????????????????????????????????? | | ?????????????????????????????????????????????????? | | ?????????????????????????????????????????????????? | | ?????????????????????????????????????????????????? | | ?????????????????????????????????????????????????? | | ?????????????????????????????????????????????????? | | ?????????????????????????????????????????????????? | | ?????????????????????????????????????????????????? | | ?????????????????????????????????????????????????? | | ??????????????????????###????????????????????????? | | ?????????????????????? ????????????????????????? | | ?????????????????????? ????????????????????????? | | ??????????????????????# ????????????????????????? | | ???????????????????#### ######??????????????????? | | ???????????????????# #??????????????????? | | ???????????????????# """" #??????????????????? | | ???????????????????# """" ###????????????????? | | ???????????????????# """" ?????????????????? | | ???????????????????# #??????????????????? | | ???????????????????# #??????????????????? | | ???????????????????# @ #??????????????????? | | ???????????????????# g g #??????????????????? | | ???????????????????# #??????????????????? | | ???????????????????# """" #??????????????????? | | ???????????????????# """" #??????????????????? | | ???????????????????# """" #??????????????????? | | ???????????????????# #??????????????????? | | ???????????????????############??????????????????? | | ?????????????????????????????????????????????????? | | ?????????????????????????????????????????????????? | | | | | | | | | | | | | | | | | | | | | | | | | | | | | | | +----------------------------------------------------+ Best States ------------- Heat Dissipation 35 Energy Generation 10 Energy Capacity 250 Matter Stores 300 Matter Capacity 300 Sight Range 16 Terrain Scan Density 10 Evasion (%) 40 Recoil Reduction 1 Item Schematics ----------------- None Robot Schematics ------------------ None Fabricated ------------ Nothing Repaired ---------- Nothing Studied --------- None Alien Tech Used ----------------- None Achievements -------------- Back For More Challenges ------------ None Game ------ Seed FieldPersonalJack Manual? 0 Play Time 00:10:51 Cumulative 17.0 hours Start 2026.07.03 @ 14:13:54 End 2026.07.03 @ 14:24:57 Sessions 1 Manual Loads 0 Difficulty Rogue Special Mode None Game No. 50 Rogue 50 Adventurer 0 Explorer 0 Win Type - Total 0 Types 0/0/0/0/0/0/0/0/0/0 Lore% 11 Gallery% 19 Achievement% 17 Wizard Run 0 Options --------- Layout 1 ASCII 0 Keyboard 0 Movement Mouse Keybinds 0 Fullscreen 1 Font 24/Smallcaps Map View 76x35 Zoom Use 0% Tactical HUD 1 Map Filters NONE Filters NONE Steam 1 RUN: 08f0d21b-23d5-4b1a-8486-e88bca2d21d6